fUSD/lending_fUSD_20240718
["ID","MTS","AMOUNT","RATE_DAILY","PERIOD"]
[332502940,1721278265250,-500.0,0.00022191,2]
[332502941,1721278265259,-557.41,0.00022191,2]
[332502942,1721278265269,-1057.79,0.00022191,2]
[332502943,1721278265279,-500.0,0.00022191,2]
[332502944,1721278265288,-500.0,0.00022191,2]
[332502945,1721278265296,-501.7,0.00022191,2]
[332502946,1721278265305,-500.0,0.00022191,2]
[332502947,1721278265314,-516.5,0.00022191,2]
[332502948,1721278265324,-505.5254943,0.00022191,2]
[332502949,1721278265333,-500.0,0.00022191,2]
[332502950,1721278265342,-500.0,0.00022191,2]
[332502951,1721278265350,-508.04188067,0.00022191,2]
[332502952,1721278265360,-500.0,0.00022191,2]
[332502953,1721278265369,-500.0,0.00022191,2]
[332502954,1721278265378,-1231.33,0.00022191,2]
[332502955,1721278265386,-500.0,0.00022191,2]
[332502956,1721278265396,-151.0,0.00022191,7]
[332502957,1721278265405,-501.59688136,0.00022191,2]
[332502958,1721278265414,-500.0,0.00022191,2]
[332502959,1721278265424,-500.0,0.00022191,2]
[332502960,1721278265432,-500.0,0.00022191,2]
[332502961,1721278265442,-503.07970823,0.00022191,2]
[332502962,1721278265451,-500.0,0.00022191,2]
[332502963,1721278265461,-618.81,0.00022191,2]
[332502964,1721278265470,-500.0,0.00022191,2]
[332502965,1721278265479,-503.57585156,0.00022191,2]
[332502966,1721278265489,-500.0,0.00022191,2]
[332502967,1721278265499,-661.58,0.00022191,2]
[332502968,1721278265508,-500.0,0.00022191,2]
[332502969,1721278265517,-500.0,0.00022191,2]
[332502970,1721278265526,-500.0,0.00022191,2]
[332502971,1721278265535,-601.66,0.00022191,2]
[332502972,1721278265544,-500.0,0.00022191,2]
[332502973,1721278265554,-723.63,0.00022191,2]
[332502974,1721278265563,-500.0,0.00022191,2]
[332502975,1721278265573,-500.0,0.00022191,2]
[332502976,1721278265583,-572.25,0.00022191,2]
[332502977,1721278265593,-500.0,0.00022191,2]
[332502978,1721278265602,-500.0,0.00022191,2]
[332502979,1721278265611,-472.836208,0.00022191,7]
[332502980,1721278265620,-485.50565618,0.00022191,2]
[332502981,1721278265630,-500.0,0.00022191,2]
[332502982,1721278265639,-500.0,0.00022191,2]
[332502983,1721278265649,-1808.89,0.00022191,2]
[332502984,1721278265658,-834.24,0.00022191,2]
[332502985,1721278265667,-472.836208,0.00022191,7]
[332502986,1721278265676,-500.0,0.00022191,2]
[332502987,1721278265685,-500.0,0.00022191,2]
[332502988,1721278265695,-500.94223854,0.00022191,2]
[332502989,1721278265704,-151.0,0.00022191,7]
[332502990,1721278265713,-595.92,0.00022191,2]
[332502991,1721278265722,-505.89795442,0.00022191,2]
[332502992,1721278265732,-660.9,0.00022191,2]
[332502993,1721278265741,-500.0,0.00022191,2]
[332502994,1721278265750,-597.08,0.00022191,2]
[332502995,1721278265760,-1460.06,0.00022191,2]
[332502996,1721278265770,-500.0,0.00022191,2]
[332502997,1721278265779,-500.0,0.00022191,2]
[332502998,1721278265789,-1459.23,0.00022191,2]
[332502999,1721278265798,-459.89627,0.00022191,7]
[332503000,1721278265807,-500.0,0.00022191,2]
[332503001,1721278265816,-500.0,0.00022191,2]
[332503002,1721278265826,-500.0,0.00022191,2]
[332503003,1721278265837,-500.0,0.00022191,2]
[332503004,1721278265846,-2572.0,0.00022191,2]
[332503005,1721278265855,-500.0,0.00022191,2]
[332503006,1721278265864,-459.89627,0.00022191,7]
[332503007,1721278265874,-500.0,0.00022191,2]
[332503008,1721278265883,-500.0,0.00022191,2]
[332503009,1721278265894,-500.0,0.00022191,2]
[332503010,1721278265904,-832.85,0.00022191,2]
[332503011,1721278265913,-500.0,0.00022191,2]
[332503012,1721278265922,-500.0,0.00022191,2]
[332503013,1721278265932,-500.0,0.00022191,2]
[332503014,1721278265941,-755.9,0.00022191,2]
[332503015,1721278265951,-500.0,0.00022191,2]
[332503016,1721278265961,-500.0,0.00022191,2]
[332503017,1721278265970,-500.0,0.00022191,2]
[332503018,1721278265979,-507.67880414,0.00022191,2]
[332503019,1721278265988,-500.0,0.00022191,2]
[332503020,1721278265998,-500.0,0.00022191,2]
[332503021,1721278266007,-500.0,0.00022191,2]
[332503022,1721278266016,-500.0,0.00022191,2]
[332503023,1721278266026,-500.0,0.00022191,2]
[332503024,1721278266035,-1423.26,0.00022191,2]
[332503025,1721278266049,-500.0,0.00022191,2]
[332503026,1721278266058,-151.0,0.00022191,7]
[332503027,1721278266068,-500.0,0.00022191,2]
[332503028,1721278266077,-1742.5,0.00022191,2]
[332503029,1721278266089,-500.0,0.00022191,2]
[332503030,1721278266098,-500.0,0.00022191,2]
[332503031,1721278266107,-500.0,0.00022191,2]
[332503032,1721278266121,-500.0,0.00022191,2]
[332503033,1721278266130,-500.0,0.00022191,2]
[332503034,1721278266140,-500.0,0.00022191,2]
[332503035,1721278266149,-500.0,0.00022191,2]
[332503036,1721278266158,-500.0,0.00022191,2]
[332503037,1721278266167,-1422.17,0.00022191,2]
[332503038,1721278266176,-1493.13,0.00022191,2]
[332503039,1721278266185,-500.0,0.00022191,2]
[332503040,1721278266194,-500.0,0.00022191,2]
[332503041,1721278266203,-500.0,0.00022191,2]
[332503042,1721278266212,-500.0,0.00022191,2]
[332503043,1721278266221,-500.0,0.00022191,2]
[332503044,1721278266230,-500.0,0.00022191,2]
[332503045,1721278266239,-500.0,0.00022191,2]
[332503046,1721278266248,-500.0,0.00022191,2]
[332503047,1721278266258,-500.0,0.00022191,2]
[332503048,1721278266267,-563.05,0.00022191,2]
[332503049,1721278266276,-500.0,0.00022191,2]
[332503050,1721278266286,-151.0,0.00022191,7]
[332503051,1721278266295,-5588.55,0.00022191,2]
[332503052,1721278266305,-500.0,0.00022191,2]
[332503053,1721278266315,-500.0,0.00022191,2]
[332503054,1721278266325,-500.0,0.00022191,2]
[332503055,1721278266336,-500.0,0.00022191,2]
[332503056,1721278266346,-500.0,0.00022191,2]
[332503057,1721278266355,-215.759828,0.00022191,7]
[332503058,1721278266364,-500.0,0.00022191,2]
[332503059,1721278266373,-681.21,0.00022191,2]
[332503060,1721278266382,-500.0,0.00022191,2]
[332503061,1721278266391,-502.08986082,0.00022191,2]
[332503062,1721278266401,-151.0,0.00022191,7]
[332503063,1721278266410,-500.0,0.00022191,2]
[332503064,1721278266418,-258.012768,0.00022191,7]
[332503065,1721278266427,-500.0,0.00022191,2]
[332503066,1721278266437,-500.0,0.00022191,2]
[332503067,1721278266446,-500.61683951,0.00022191,2]
[332503068,1721278266455,-747.32,0.00022191,2]
[332503069,1721278266464,-562.13,0.00022191,2]
[332503070,1721278266473,-505.54565463,0.00022191,2]
[332503071,1721278266482,-500.0,0.00022191,2]
[332503072,1721278266491,-500.0,0.00022191,2]
[332503073,1721278266500,-500.0,0.00022191,2]
[332503074,1721278266509,-258.012768,0.00022191,7]
[332503075,1721278266518,-500.0,0.00022191,2]
[332503076,1721278266528,-500.0,0.00022191,2]
[332503077,1721278266537,-1257.47,0.00022191,2]
[332503078,1721278266546,-500.0,0.00022191,2]
[332503079,1721278266555,-500.0,0.00022191,2]
[332503080,1721278266564,-500.0,0.00022191,2]
[332503081,1721278266573,-500.0,0.00022191,2]
[332503082,1721278266582,-927.3,0.00022191,2]
[332503083,1721278266593,-500.0,0.00022191,2]
[332503084,1721278266602,-500.0,0.00022191,2]
[332503085,1721278266611,-655.14,0.00022191,2]
[332503086,1721278266620,-500.0,0.00022191,2]
[332503087,1721278266629,-500.0,0.00022191,2]
[332503088,1721278266639,-500.0,0.00022191,2]
[332503089,1721278266649,-3093.4,0.00022191,2]
[332503090,1721278266658,-500.0,0.00022191,2]
[332503091,1721278266669,-500.0,0.00022191,2]
[332503092,1721278266678,-500.0,0.00022191,2]
[332503093,1721278266687,-501.68292168,0.00022191,2]
[332503094,1721278266696,-500.0,0.00022191,2]
[332503095,1721278266706,-1461.68,0.00022191,2]
[332503096,1721278266715,-783.52,0.00022191,2]
[332503097,1721278266725,-500.0,0.00022191,2]
[332503098,1721278266734,-1310.21,0.00022191,2]
[332503099,1721278266743,-500.0,0.00022191,2]
[332503100,1721278266752,-633.02,0.00022191,2]
[332503101,1721278266761,-552.62767388,0.00022191,2]
[332503102,1721278266770,-501.89283342,0.00022191,2]
[332503103,1721278266779,-500.0,0.00022191,2]
[332503104,1721278266788,-500.0,0.00022191,2]
[332503105,1721278266798,-500.0,0.00022191,2]
[332503106,1721278266807,-727.58,0.00022191,2]
[332503107,1721278266816,-412.17229149,0.00022191,2]
[332503108,1721278266825,-7119.89,0.00022191,2]
[332503109,1721278266836,-500.0,0.00022191,2]
[332503110,1721278266845,-500.0,0.00022191,2]
[332503111,1721278266854,-11463.56,0.00022191,2]
[332503112,1721278266867,-500.0,0.00022191,2]
[332503113,1721278266877,-1098.77,0.00022191,2]
[332503114,1721278266886,-151.0,0.00022191,7]
[332503115,1721278266896,-500.0,0.00022191,2]
[332503116,1721278266905,-500.0,0.00022191,2]
[332503117,1721278266915,-511.83043893,0.00022191,2]
[332503118,1721278266924,-500.0,0.00022191,2]
[332503119,1721278266933,-500.0,0.00022191,2]
[332503120,1721278266943,-634.9,0.00022191,2]
[332503121,1721278266952,-500.0,0.00022191,2]
[332503122,1721278266962,-3682.06,0.00022191,2]
[332503123,1721278266972,-899.91,0.00022191,2]
[332503124,1721278266981,-500.0,0.00022191,2]
[332503125,1721278266990,-500.0,0.00022191,2]
[332503126,1721278267001,-1397.74,0.00022191,2]
[332503127,1721278267011,-500.0,0.00022191,2]
[332503128,1721278267023,-500.0,0.00022191,2]
[332503129,1721278267032,-151.0,0.00022191,7]
[332503130,1721278267045,-500.0,0.00022191,2]
[332503131,1721278267055,-685.12,0.00022191,2]
[332503132,1721278267065,-500.0,0.00022191,2]
[332503133,1721278267075,-500.0,0.00022191,2]
[332503134,1721278267084,-500.0,0.00022191,2]
[332503135,1721278267093,-1434.55,0.00022191,2]
[332503136,1721278267102,-500.0,0.00022191,2]
[332503137,1721278267111,-822.29,0.00022191,2]
[332503138,1721278267120,-4073.01,0.00022191,2]
[332503139,1721278267129,-500.0,0.00022191,2]
[332503140,1721278267139,-500.0,0.00022191,2]
[332503141,1721278267148,-500.0,0.00022191,2]
[332503142,1721278267157,-500.0,0.00022191,2]
[332503143,1721278267167,-500.0,0.00022191,2]
[332503144,1721278267177,-896.24,0.00022191,2]
[332503145,1721278267186,-846.23,0.00022191,2]
[332503146,1721278267195,-837.4,0.00022191,2]
[332503147,1721278267204,-500.0,0.00022191,2]
[332503148,1721278267213,-151.0,0.00022191,7]
[332503149,1721278267222,-927.88,0.00022191,2]
[332503150,1721278267231,-500.0,0.00022191,2]
[332503151,1721278267241,-501.05939061,0.00022191,2]
[332503152,1721278267250,-500.0,0.00022191,2]
[332503153,1721278267259,-500.0,0.00022191,2]
[332503154,1721278267268,-500.0,0.00022191,2]
[332503155,1721278267277,-779.86,0.00022191,2]
[332503156,1721278267286,-693.74,0.00022191,2]
[332503157,1721278267295,-500.0,0.00022191,2]
[332503158,1721278267304,-500.0,0.00022191,2]
[332503159,1721278267314,-500.0,0.00022191,2]
[332503160,1721278267324,-500.0,0.00022191,2]
[332503161,1721278267337,-500.0,0.00022191,2]
[332503162,1721278267348,-151.0,0.00022191,7]
[332503163,1721278267358,-500.0,0.00022191,2]
[332503164,1721278267368,-500.0,0.00022191,2]
[332503165,1721278267378,-500.0,0.00022191,2]
[332503166,1721278267387,-793.21,0.00022191,2]
[332503167,1721278267396,-961.59,0.00022191,2]
[332503168,1721278267405,-1362.68,0.00022191,2]
[332503169,1721278267414,-500.0,0.00022191,2]
[332503170,1721278267424,-500.0,0.00022191,2]
[332503171,1721278267434,-500.0,0.00022191,2]
[332503172,1721278267443,-1316.54,0.00022191,2]
[332503173,1721278267452,-500.0,0.00022191,2]
[332503174,1721278267462,-966.8,0.00022191,2]
[332503175,1721278267472,-1005.28,0.00022191,2]
[332503176,1721278267481,-500.0,0.00022191,2]
[332503177,1721278267494,-492.15932065,0.00022191,2]
[332503178,1721278267505,-503.777066,0.00022191,2]
[332503179,1721278267515,-592.1,0.00022191,2]
[332503180,1721278267524,-500.0,0.00022191,2]
[332503181,1721278267534,-500.0,0.00022191,2]
[332503182,1721278267544,-500.0,0.00022191,2]
[332503183,1721278267553,-667.39,0.00022191,2]
[332503184,1721278267563,-500.0,0.00022191,2]
[332503185,1721278267573,-500.0,0.00022191,2]
[332503186,1721278267583,-886.95,0.00022191,2]
[332503187,1721278267594,-1086.23,0.00022191,2]
[332503188,1721278267602,-500.0,0.00022191,2]
[332503189,1721278267612,-500.0,0.00022191,2]
[332503190,1721278267621,-1843.41,0.00022191,2]
[332503191,1721278267632,-151.0,0.00022191,7]
[332503192,1721278267642,-500.0,0.00022191,2]
[332503193,1721278267651,-500.0,0.00022191,2]
[332503194,1721278267660,-9749.46,0.00022191,2]
[332503195,1721278267670,-500.88417895,0.00022191,2]
[332503196,1721278267679,-521.62585476,0.00022191,2]
[332503197,1721278267688,-500.0,0.00022191,2]
[332503198,1721278267698,-500.0,0.00022191,2]
[332503199,1721278267707,-500.0,0.00022191,2]
[332503200,1721278267717,-500.0,0.00022191,2]
[332503201,1721278267727,-500.0,0.00022191,2]
[332503202,1721278267737,-1025.51,0.00022191,2]
[332503203,1721278267746,-846.53,0.00022191,2]
[332503204,1721278267755,-500.0,0.00022191,2]
[332503205,1721278267765,-500.0,0.00022191,2]
[332503206,1721278267774,-1809.01,0.00022191,2]
[332503207,1721278267783,-873.09,0.00022191,2]
[332503208,1721278267792,-500.0,0.00022191,2]
[332503209,1721278267801,-500.0,0.00022191,2]
[332503210,1721278267811,-500.0,0.00022191,2]
[332503211,1721278267820,-500.0,0.00022191,2]
[332503212,1721278267830,-500.0,0.00022191,2]
[332503213,1721278267842,-706.38,0.00022191,2]
[332503214,1721278267852,-500.0,0.00022191,2]
[332503215,1721278267861,-151.0,0.00022191,7]
[332503216,1721278267870,-500.91044618,0.00022191,2]
[332503217,1721278267880,-500.0,0.00022191,2]
[332503218,1721278267891,-503.02561881,0.00022191,2]
[332503219,1721278267901,-500.0,0.00022191,2]
[332503220,1721278267911,-552.29,0.00022191,2]
[332503221,1721278267920,-500.0,0.00022191,2]
[332503222,1721278267930,-735.15,0.00022191,2]
[332503223,1721278267940,-500.0,0.00022191,2]
[332503224,1721278267949,-500.0,0.00022191,2]
[332503225,1721278267959,-151.0,0.00022191,7]
[332503226,1721278267968,-506.59940207,0.00022191,2]
[332503227,1721278267978,-340.393301,0.00022191,7]
[332503228,1721278267987,-500.0,0.00022191,2]
[332503229,1721278267997,-500.0,0.00022191,2]
[332503230,1721278268006,-151.0,0.00022191,7]
[332503231,1721278268015,-500.0,0.00022191,2]
[332503232,1721278268024,-500.0,0.00022191,2]
[332503233,1721278268034,-502.23507826,0.00022191,2]
[332503234,1721278268047,-500.0,0.00022191,2]
[332503235,1721278268056,-580.8013176,0.00022191,2]
[332503236,1721278268067,-500.0,0.00022191,2]
[332503237,1721278268076,-340.393301,0.00022191,7]
[332503238,1721278268192,-1004.02,0.00022191,2]
[332503239,1721278268209,-500.0,0.00022191,2]
[332503240,1721278268219,-500.0,0.00022191,2]
[332503241,1721278268228,-500.0,0.00022191,2]
[332503242,1721278268238,-449.44236988,0.00022191,2]
[332503243,1721278268247,-590.77,0.00022191,2]
[332503244,1721278268257,-900.46,0.00022191,2]
[332503245,1721278268267,-553.09,0.00022191,2]
[332503246,1721278268276,-500.0,0.00022191,2]
[332503247,1721278268286,-500.0,0.00022191,2]
[332503248,1721278268296,-781.98,0.00022191,2]
[332503249,1721278268305,-500.0,0.00022191,2]
[332503250,1721278268315,-759.02,0.00022191,2]
[332503251,1721278268325,-1000.0,0.00022191,15]
[332503252,1721278268335,-500.0,0.00022191,2]
[332503253,1721278268344,-151.0,0.00022191,7]
[332503254,1721278268354,-500.0,0.00022191,2]
[332503255,1721278268364,-501.0,0.00022191,2]
[332503256,1721278268374,-500.0,0.00022191,2]
[332503257,1721278268383,-500.0,0.00022191,2]
[332503258,1721278268393,-500.0,0.00022191,2]
[332503259,1721278268402,-509.44451348,0.00022191,2]
[332503260,1721278268412,-501.94,0.00022191,2]
[332503261,1721278268421,-500.0,0.00022191,2]
[332503262,1721278268431,-500.0,0.00022191,2]
[332503263,1721278268442,-1091.46,0.00022191,2]
[332503264,1721278268452,-538.07,0.00022191,2]
[332503265,1721278268462,-151.0,0.00022191,7]
[332503266,1721278268472,-500.0,0.00022191,2]
[332503267,1721278268482,-500.0,0.00022191,2]
[332503268,1721278268492,-4087.93,0.00022191,2]
[332503269,1721278268501,-500.0,0.00022191,2]
[332503270,1721278268511,-500.0,0.00022191,2]
[332503271,1721278268521,-500.0,0.00022191,2]
[332503272,1721278268531,-1661.4,0.00022191,2]
[332503273,1721278268541,-759.84,0.00022191,2]
[332503274,1721278268551,-3834.72,0.00022191,2]
[332503275,1721278268561,-500.0,0.00022191,2]
[332503276,1721278268572,-500.0,0.00022191,2]
[332503277,1721278268582,-500.0,0.00022191,2]
[332503278,1721278268592,-500.0,0.00022191,2]
[332503279,1721278268602,-500.0,0.00022191,2]
[332503280,1721278268612,-464.83603646,0.00022191,2]
[332503281,1721278268622,-500.0,0.00022191,2]
[332503282,1721278268632,-589.26,0.00022191,2]
[332503283,1721278268642,-500.0,0.00022191,2]
[332503284,1721278268652,-500.0,0.00022191,2]
[332503285,1721278268662,-151.0,0.00022191,7]
[332503286,1721278268672,-500.0,0.00022191,2]
[332503287,1721278268682,-500.0,0.00022191,2]
[332503288,1721278268692,-500.85604521,0.00022191,2]
[332503289,1721278268702,-576.51,0.00022191,2]
[332503290,1721278268711,-212.88000708,0.00022191,2]
[332503291,1721278268721,-500.0,0.00022191,2]
[332503292,1721278268731,-640.95,0.00022191,2]
[332503293,1721278268741,-500.0,0.00022191,2]
[332503294,1721278268750,-500.0,0.00022191,2]
[332503295,1721278268760,-2551.4,0.00022191,2]
[332503296,1721278268770,-500.0,0.00022191,2]
[332503297,1721278268779,-660.07,0.00022191,2]
[332503298,1721278268789,-500.0,0.00022191,2]
[332503299,1721278268799,-724.54,0.00022191,2]
[332503300,1721278268809,-830.24,0.00022191,2]
[332503301,1721278268818,-500.0,0.00022191,2]
[332503302,1721278268828,-521.48,0.00022191,2]
[332503303,1721278268838,-500.0,0.00022191,2]
[332503304,1721278268847,-513.88008651,0.00022191,2]
[332503305,1721278268857,-500.0,0.00022191,2]
[332503306,1721278268866,-523.95,0.00022191,2]
[332503307,1721278268876,-500.0,0.00022191,2]
[332503308,1721278268885,-500.0,0.00022191,2]
[332503309,1721278268895,-500.0,0.00022191,2]
[332503310,1721278268905,-500.0,0.00022191,2]
[332503311,1721278268914,-500.0,0.00022191,2]
[332503312,1721278268924,-158.933656,0.00022191,7]
[332503313,1721278268933,-505.13945096,0.00022191,2]
[332503314,1721278268943,-500.0,0.00022191,2]
[332503315,1721278268952,-1771.83,0.00022191,2]
[332503316,1721278268961,-832.84,0.00022191,2]
[332503317,1721278268971,-500.0,0.00022191,2]
[332503318,1721278268980,-500.0,0.00022191,2]
[332503319,1721278268989,-1864.33,0.00022191,2]
[332503320,1721278268999,-500.0,0.00022191,2]
[332503321,1721278269008,-663.525383,0.00022191,7]
[332503322,1721278269018,-151.0,0.00022191,7]
[332503323,1721278269027,-500.0,0.00022191,2]
[332503324,1721278269038,-827.36,0.00022191,2]
[332503325,1721278269049,-500.0,0.00022191,2]
[332503326,1721278269058,-158.933656,0.00022191,7]
[332503327,1721278269068,-660.97,0.00022191,2]
[332503328,1721278269077,-1084.09,0.00022191,2]
[332503329,1721278269087,-500.0,0.00022191,2]
[332503330,1721278269096,-790.22,0.00022191,2]
[332503331,1721278269106,-500.0,0.00022191,2]
[332503332,1721278269115,-151.0,0.00022191,7]
[332503333,1721278269124,-663.525383,0.00022191,7]
[332503334,1721278269134,-690.37,0.00022191,2]
[332503335,1721278269143,-509.94214508,0.00022191,2]
[332503336,1721278269152,-500.0,0.00022191,2]
[332503337,1721278269161,-500.0,0.00022191,2]
[332503338,1721278269171,-500.0,0.00022191,2]
[332503339,1721278269180,-500.0,0.00022191,2]
[332503340,1721278269189,-1069.06,0.00022191,2]
[332503341,1721278269199,-850.78,0.00022191,2]
[332503342,1721278269209,-520.45642892,0.00022191,2]
[332503343,1721278269219,-625.18,0.00022191,2]
[332503344,1721278269229,-500.0,0.00022191,2]
[332503345,1721278269238,-821.43,0.00022191,2]
[332503346,1721278269247,-531.93,0.00022191,2]
[332503347,1721278269256,-500.0,0.00022191,2]
[332503348,1721278269266,-500.0,0.00022191,2]
[332503349,1721278269275,-500.0,0.00022191,2]
[332503350,1721278269284,-835.04,0.00022191,2]
[332503351,1721278269294,-500.0,0.00022191,2]
[332503352,1721278269304,-1014.65,0.00022191,2]
[332503353,1721278269313,-1687.7,0.00022191,2]
[332503354,1721278269322,-504.47440495,0.00022191,2]
[332503355,1721278269332,-500.0,0.00022191,2]
[332503356,1721278269343,-500.0,0.00022191,2]
[332503357,1721278269352,-500.0,0.00022191,2]
[332503358,1721278269361,-151.0,0.00022191,7]
[332503359,1721278269371,-450.700224,0.00022191,7]
[332503360,1721278269380,-500.0,0.00022191,2]
[332503361,1721278269390,-1534.11,0.00022191,2]
[332503362,1721278269402,-500.0,0.00022191,2]
[332503363,1721278269412,-500.0,0.00022191,2]
[332503364,1721278269422,-500.0,0.00022191,2]
[332503365,1721278269431,-2696.799558,0.00022191,7]
[332503366,1721278269440,-500.0,0.00022191,2]
[332503367,1721278269450,-693.0,0.00022191,2]
[332503368,1721278269460,-500.0,0.00022191,2]
[332503369,1721278269470,-450.700224,0.00022191,7]
[332503370,1721278269479,-506.21283674,0.00022191,2]
[332503371,1721278269488,-500.0,0.00022191,2]
[332503372,1721278269498,-500.0,0.00022191,2]
[332503373,1721278269507,-152.45527875,0.00022191,2]
[332503374,1721278269516,-691.63,0.00022191,2]
[332503375,1721278269526,-2696.799558,0.00022191,7]
[332503376,1721278269535,-500.0,0.00022191,2]
[332503377,1721278269544,-508.58195447,0.00022191,2]
[332503378,1721278269554,-500.0,0.00022191,2]
[332503379,1721278269563,-606.52,0.00022191,2]
[332503380,1721278269573,-500.0,0.00022191,2]
[332503381,1721278269582,-602.58,0.00022191,2]
[332503382,1721278269593,-500.0,0.00022191,2]
[332503383,1721278269602,-500.0,0.00022191,2]
[332503384,1721278269611,-500.0,0.00022191,2]
[332503385,1721278269621,-500.0,0.00022191,2]
[332503386,1721278269630,-507.94356409,0.00022191,2]
[332503387,1721278269639,-246.397982,0.00022191,7]
[332503388,1721278269649,-793.77,0.00022191,2]
[332503389,1721278269658,-418.828348,0.00022191,7]
[332503390,1721278269668,-500.0,0.00022191,2]
[332503391,1721278269677,-514.69,0.00022191,2]
[332503392,1721278269686,-1216.98,0.00022191,2]
[332503393,1721278269696,-500.0,0.00022191,2]
[332503394,1721278269705,-678.38,0.00022191,2]
[332503395,1721278269714,-2005.3,0.00022191,2]
[332503396,1721278269724,-500.0,0.00022191,2]
[332503397,1721278269734,-501.10772435,0.00022191,2]
[332503398,1721278269744,-500.0,0.00022191,2]
[332503399,1721278269754,-418.828348,0.00022191,7]
[332503400,1721278269764,-500.58694254,0.00022191,2]
[332503401,1721278269773,-500.0,0.00022191,2]
[332503402,1721278269783,-500.0,0.00022191,2]
[332503403,1721278269792,-1929.61,0.00022191,2]
[332503404,1721278269802,-500.0,0.00022191,2]
[332503405,1721278269812,-500.0,0.00022191,2]
[332503406,1721278269822,-500.0,0.00022191,2]
[332503407,1721278269832,-1580.89,0.00022191,2]
[332503408,1721278269844,-1243.02,0.00022191,2]
[332503409,1721278269853,-500.0,0.00022191,2]
[332503410,1721278269864,-622.91,0.00022191,2]
[332503411,1721278269875,-500.0,0.00022191,2]
[332503412,1721278269885,-707.3,0.00022191,2]
[332503413,1721278269896,-1663.83,0.00022191,2]
[332503414,1721278269907,-1060.24,0.00022191,2]
[332503415,1721278269917,-500.0,0.00022191,2]
[332503416,1721278269928,-151.0,0.00022191,7]
[332503417,1721278269938,-500.0,0.00022191,2]
[332503418,1721278269948,-500.0,0.00022191,2]
[332503419,1721278269958,-504.98917999,0.00022191,2]
[332503420,1721278269969,-500.0,0.00022191,2]
[332503421,1721278269980,-1036.78,0.00022191,2]
[332503422,1721278269991,-958.75,0.00022191,2]
[332503423,1721278270002,-500.0,0.00022191,2]
[332503424,1721278270012,-500.0,0.00022191,2]
[332503425,1721278270022,-167.41403,0.00022191,7]
[332503426,1721278270031,-500.0,0.00022191,2]
[332503427,1721278270045,-500.0,0.00022191,2]
[332503428,1721278270054,-1305.9,0.00022191,2]
[332503429,1721278270063,-151.0,0.00022191,7]
[332503430,1721278270072,-151.0,0.00022191,7]
[332503431,1721278270082,-151.0,0.00022191,7]
[332503432,1721278270093,-442.93,0.00022191,2]
[332503433,1721278270102,-500.0,0.00022191,2]
[332503434,1721278270113,-1828.43,0.00022191,2]
[332503435,1721278270122,-1235.49,0.00022191,2]
[332503436,1721278270132,-946.22,0.00022191,2]
[332503437,1721278270143,-500.0,0.00022191,2]
[332503438,1721278270153,-918.04,0.00022191,2]
[332503439,1721278270163,-151.0,0.00022191,7]